bitfinex-derivatives/quotes_ETHF0:USTF0_20250902
["timestamp","ask_amount","ask_price","bid_price","bid_amount"]
[1756813922475,3.5523,4363.9,4363.8,0.5232]
[1756813922675,3.5523,4363.9,4363.8,0.2902]
[1756813922874,3.5523,4363.9,4363.8,0.5232]
[1756813923975,3.4694,4363.9,4363.8,0.7232]
[1756813925578,3.5523,4363.9,4363.8,0.7232]
[1756813926079,3.5523,4363.9,4363.8,0.5232]
[1756813926781,3.5523,4363.9,4363.8,0.9151]
[1756813926782,0.1308,4363.9,4363.8,0.9151]
[1756813927174,0.2634,4363.9,4363.8,0.9151]
[1756813927375,3.4712,4363.9,4363.8,0.7232]
[1756813928083,3.4712,4363.9,4363.8,0.4902]
[1756813928282,3.5541,4363.9,4363.8,0.5232]
[1756813928975,3.5541,4363.9,4363.2,0.3086]
[1756813929176,0.1306,4363.2,4363.1,0.7046]
[1756813929473,0.1306,4363.2,4363.1,0.9376]
[1756813929977,0.0816,4363.7,4363.1,0.9376]
[1756813930177,3.469,4363.9,4363.8,0.396]
[1756813930378,3.2078,4364.4,4363.9,0.3086]
[1756813930578,0.2612,4364.0,4363.9,0.7046]
[1756813931378,0.2612,4364.0,4363.9,0.5132]
[1756813931577,0.2612,4364.0,4363.9,0.9376]
[1756813931778,0.2612,4364.0,4363.9,0.7462]
[1756813931978,0.2612,4364.0,4363.9,0.5132]
[1756813932186,0.3428,4364.0,4363.9,0.3086]
[1756813932886,0.0816,4363.9,4363.8,0.233]
[1756813933082,3.5506,4363.9,4363.8,0.5416]
[1756813933484,3.5506,4363.9,4363.8,0.3086]
[1756813934084,0.2612,4363.4,4363.3,0.233]
[1756813934281,0.2612,4363.4,4363.3,0.3086]
[1756813934484,0.3428,4363.4,4363.3,0.3086]
[1756813934784,0.2612,4363.4,4363.3,0.5132]
[1756813935092,0.2612,4363.4,4363.3,0.7046]
[1756813935587,0.2612,4363.4,4363.3,0.3086]
[1756813935784,0.2612,4363.4,4363.3,0.5132]
[1756813935987,0.2612,4363.4,4363.3,0.7046]
[1756813936888,3.2078,4363.9,4363.3,0.7046]
[1756813937089,3.3384,4363.9,4363.8,0.396]
[1756813937291,3.5506,4363.9,4363.8,0.3086]
[1756813938989,3.469,4363.9,4363.8,0.5132]
[1756813939490,3.5506,4363.9,4363.8,0.5132]
[1756813939792,4.16089745,4363.9,4363.8,0.3086]
[1756813940392,4.07929745,4363.9,4363.8,0.7046]
[1756813940980,4.07929745,4363.9,4363.8,0.3086]
[1756813941186,4.16089745,4363.9,4363.8,0.3086]
[1756813944792,5.32800002,4364.3,4364.2,0.396]
[1756813944987,0.87206203,4364.3,4364.2,0.7046]
[1756813945288,0.95366203,4364.3,4364.2,0.3086]
[1756813945894,0.87206203,4364.3,4363.7,0.3086]
[1756813946093,0.2612,4363.8,4363.7,0.5132]
[1756813947290,0.44552791,4363.8,4363.7,0.5132]
[1756813948197,0.52712791,4363.8,4363.7,0.3086]
[1756813948398,1.0571198,4363.8,4363.7,0.5132]
[1756813949285,1.1387198,4363.8,4363.7,0.3086]
[1756813950300,0.2612,4362.1,4362.0,2.09016667]
[1756813950503,3.65332791,4362.1,4362.0,2.29476667]
[1756813950801,3.52272791,4362.1,4362.0,2.48616667]
[1756813951096,0.18432791,4362.1,4362.0,2.48616667]
[1756813951298,0.18432791,4362.1,4362.0,2.41156667]
[1756813951489,0.18432791,4362.1,4362.0,2.72016667]
[1756813952294,3.52272791,4362.1,4362.0,2.48616667]
[1756813952695,3.65332791,4362.1,4362.0,2.48616667]
[1756813953292,8.78632791,4362.1,4360.3,0.3086]
[1756813953494,8.78632791,4362.1,4361.0,0.8195]
[1756813953495,3.2078,4361.1,4361.0,0.8195]
[1756813953698,3.39212791,4361.1,4361.0,0.8195]
[1756813954103,3.39212791,4361.1,4361.0,5.0545]
[1756813954301,3.2078,4361.6,4361.5,0.8195]
[1756813954497,3.39153383,4361.6,4361.5,0.8195]
[1756813954703,3.2078,4361.6,4361.5,0.8195]
[1756813955001,3.39154063,4361.6,4361.5,0.9406]
[1756813955201,3.39154063,4361.6,4361.5,0.5132]
[1756813956003,3.39154063,4361.6,4361.5,0.8195]
[1756813956598,3.39154063,4361.6,4361.5,1.0555]
[1756813957396,3.39154063,4361.6,4361.5,5.0555]
[1756813957602,3.3224,4362.3,4362.2,0.7046]
[1756813957792,3.50584655,4362.3,4362.2,0.7046]
[1756813958397,3.3224,4362.3,4362.2,0.7046]
[1756813958600,0.1146,4362.3,4362.2,0.7046]
[1756813959403,0.1146,4362.3,4362.2,4.7046]
[1756813959602,0.1146,4362.3,4362.2,8.14164]
[1756813959908,0.1146,4362.3,4362.2,48.7124]
[1756813960403,3.2078,4363.4,4363.3,0.3996]
[1756813960608,3.2078,4363.4,4363.3,0.9485]
[1756813961004,3.2078,4363.9,4363.8,0.3996]
[1756813961211,3.39127089,4363.9,4363.8,0.9485]
[1756813961707,3.2078,4363.9,4363.8,0.9485]
[1756813961913,3.39128888,4363.9,4363.8,0.9485]
[1756813962614,3.2078,4363.9,4363.8,0.9485]
[1756813964522,3.2088,4363.9,4363.8,0.9485]
[1756813964719,3.2088,4363.9,4363.7,0.236]
[1756813964720,3.39326186,4363.9,4363.7,0.236]
[1756813964915,0.18546186,4363.8,4363.2,0.3129]
[1756813965214,0.002,4363.2,4362.6,0.3129]
[1756813965414,0.002,4362.7,4362.6,0.2088]
[1756813965609,0.002,4362.7,4362.6,0.5217]
[1756813966220,0.002,4362.7,4362.6,0.7577]
[1756813967114,0.18546837,4362.7,4362.6,0.7577]
[1756813967319,0.002,4362.7,4362.6,0.7577]
[1756813968114,0.18549008,4362.7,4362.6,0.7577]
[1756813968924,0.18552079,4362.7,4362.6,0.7577]
[1756813969118,0.18552079,4362.7,4361.8,33.014]
[1756813969423,0.002,4362.1,4362.0,0.8369]
[1756813969624,0.002,4362.1,4362.0,1.0729]
[1756813970018,0.001,4362.1,4362.0,1.0729]
[1756813970224,0.001,4362.1,4362.0,0.8369]
[1756813970426,0.001,4362.1,4362.0,1.0729]
[1756813971327,3.2078,4362.4,4362.3,0.3996]
[1756813971527,3.39129938,4362.4,4362.3,0.7125]
[1756813971923,3.39329938,4362.4,4362.3,0.7125]
[1756813972124,3.39329938,4362.4,4362.3,0.7577]
[1756813972325,3.39329938,4362.4,4362.3,0.9485]
[1756813972522,3.39129938,4362.4,4362.3,0.9485]
[1756813972920,3.39129938,4362.4,4362.3,0.7125]
[1756813973224,3.39129938,4362.4,4362.3,0.9485]
[1756813973629,3.39229938,4362.4,4362.3,0.9485]
[1756813975425,0.18549938,4362.4,4362.3,0.3129]
[1756813975630,0.18549938,4362.4,4362.3,0.9485]
[1756813976023,0.18546673,4362.4,4362.3,0.7577]
[1756813976230,0.18546673,4362.4,4361.8,33.014]
[1756813976428,0.18546673,4362.3,4362.2,0.5217]
[1756813976630,0.18346673,4362.3,4362.2,0.7125]
[1756813976827,0.18349726,4362.3,4362.2,0.7125]
[1756813977229,3.2078,4362.6,4362.5,0.1244]
[1756813977435,3.2088,4362.6,4362.5,1.0729]
[1756813979638,3.81919021,4362.6,4362.5,1.0729]
[1756813980436,3.81719021,4362.6,4362.5,1.0729]
[1756813980734,3.2078,4363.1,4363.0,0.8369]
[1756813980940,3.2088,4363.1,4363.0,1.0729]
[1756813981536,3.2078,4363.1,4363.0,5.0729]
[1756813981739,3.2078,4363.1,4363.0,1.0729]
[1756813982040,3.2088,4363.1,4363.0,1.0729]
[1756813982226,3.2088,4363.1,4363.0,41.8729]
[1756813982431,3.2078,4363.1,4363.0,41.8729]
[1756813983034,3.2078,4363.1,4363.0,41.6369]
[1756813983242,3.2078,4363.1,4363.0,41.8729]
[1756813983444,3.2078,4363.1,4363.0,41.6369]
[1756813983745,3.2078,4363.1,4363.0,1.0719]
[1756813986038,3.2078,4363.6,4363.5,0.2088]
[1756813986241,3.2078,4363.6,4363.5,0.7567]
[1756813986637,3.2078,4363.6,4363.5,1.0719]
[1756813987244,3.2078,4363.6,4363.5,0.3129]
[1756813987446,3.2078,4363.6,4363.5,0.235]
[1756813988047,3.2078,4363.6,4363.5,0.5479]
[1756813988246,3.2078,4363.6,4363.5,0.3129]
[1756813988545,3.2078,4363.6,4363.5,0.5479]
[1756813989448,3.2098,4363.6,4363.5,0.7567]
[1756813989644,3.2098,4363.6,4363.5,1.0726]
[1756813989851,3.2078,4363.6,4363.5,1.0726]
[1756813991350,3.2078,4364.3,4363.6,0.3026]
[1756813991651,3.2098,4364.3,4364.2,0.5078]
[1756813991847,3.2098,4364.3,4363.6,0.3026]
[1756813992049,3.2098,4364.3,4364.1,0.235]
[1756813992445,3.2098,4364.3,4363.8,0.3026]
[1756813992646,3.2098,4364.3,4363.8,0.235]
[1756813992845,3.2098,4364.3,4363.8,0.5376]
[1756813993046,3.2098,4364.3,4363.8,0.235]
[1756813993248,0.002,4363.9,4363.8,0.235]
[1756813993653,0.002,4363.9,4363.5,0.235]
[1756813993851,3.2098,4363.6,4363.0,0.235]
[1756813994153,3.2098,4363.1,4363.0,0.235]
[1756813994347,3.2098,4363.1,4363.0,0.5376]
[1756813994547,3.2098,4363.1,4363.0,0.3026]
[1756813999559,3.2098,4363.1,4363.0,0.5078]
[1756813999760,3.2098,4363.1,4363.0,0.8237]
[1756814001959,3.82089625,4363.1,4363.0,0.3026]
[1756814002862,3.82089625,4363.1,4363.0,0.5078]
[1756814005359,3.82089625,4363.1,4363.0,0.7033]
[1756814005558,3.81989625,4363.1,4363.0,0.8237]
[1756814009252,3.82089625,4363.1,4363.0,0.5078]
[1756814009957,8.05009625,4363.1,4361.8,33.014]
[1756814010158,0.002,4361.8,4361.1,0.3026]
[1756814010354,0.001,4361.2,4361.1,0.7033]
[1756814010558,3.2078,4362.0,4361.2,0.3026]
[1756814010762,3.2098,4362.0,4361.9,0.5078]
[1756814010962,3.82114144,4362.0,4361.9,0.5078]
[1756814011166,3.82114144,4362.0,4361.9,0.3026]
[1756814011361,3.82114144,4362.0,4361.5,0.3026]
[1756814011562,3.2098,4362.0,4361.4,0.235]
[1756814011764,3.2098,4362.0,4361.4,0.5376]
[1756814012162,3.2078,4361.5,4360.9,40.8]
[1756814012370,0.002,4361.1,4361.0,1.0587]
[1756814014764,0.001,4361.1,4361.0,1.0587]
[1756814015971,0.001,4361.1,4361.0,0.8237]
[1756814016169,0.002,4361.1,4361.0,0.8237]
[1756814016963,0.002,4361.1,4360.5,0.1204]
[1756814016964,4.2313,4361.1,4360.5,0.235]
[1756814017161,0.002,4360.6,4360.5,0.3026]
[1756814017362,0.002,4360.6,4360.3,0.3026]
[1756814017661,3.2098,4360.4,4360.3,0.3026]
[1756814018170,3.2098,4360.4,4360.3,0.5078]
[1756814019072,3.2098,4360.4,4360.3,0.3026]
[1756814019271,3.2098,4360.4,4360.2,1.60541253]
[1756814019574,3.2098,4360.4,4360.3,0.3001]
[1756814019971,3.2098,4360.4,4360.2,1.60541253]
[1756814020367,0.23154001,4360.3,4360.2,1.60541253]
[1756814020567,0.0022,4360.3,4360.2,1.90551253]
[1756814020766,0.0022,4360.3,4360.2,1.60541253]
[1756814021270,4.0022,4360.3,4360.2,1.60541253]
[1756814021468,4.83923942,4360.3,4360.2,0.79836502]
[1756814022367,0.83923942,4360.3,4360.2,0.79836502]
[1756814022671,1.07423942,4360.3,4360.2,0.79836502]
[1756814022971,0.84489941,4360.3,4360.2,0.79836502]
[1756814023165,4.84489941,4360.3,4360.2,0.79836502]
[1756814023762,4.60989941,4360.3,4360.2,0.79836502]
[1756814023969,4.84489941,4360.3,4360.2,0.79836502]
[1756814024373,5.07423942,4360.3,4360.2,0.55709819]
[1756814024870,4.84489941,4360.3,4360.2,0.55709819]
[1756814025287,0.60989941,4360.3,4360.2,0.55709819]
[1756814025472,0.84589941,4360.3,4360.2,0.55709819]
[1756814025668,4.84589941,4360.3,4360.0,1.66666667]
[1756814025870,0.0022,4360.1,4360.0,1.66666667]
[1756814026072,0.84589941,4360.1,4360.0,1.66666667]
[1756814026266,5.50889941,4360.1,4358.1,0.3001]
[1756814026571,3.2078,4358.7,4358.6,0.7105]
[1756814026875,3.2078,4358.7,4358.6,0.9475]
[1756814027177,3.2078,4358.7,4358.6,0.7105]
[1756814027379,3.2078,4358.7,4358.6,0.9475]
[1756814027773,3.2078,4358.7,4358.6,0.7105]
[1756814027975,3.2078,4358.7,4358.6,4.7105]
[1756814029077,3.2078,4358.7,4358.6,4.9485]
[1756814029270,3.2078,4358.7,4358.6,0.7105]
[1756814029475,3.19780746,4358.7,4358.6,0.9485]
[1756814030175,3.19780746,4358.7,4358.6,0.7105]
[1756814030577,3.19780746,4358.7,4358.6,4.7105]
[1756814032176,3.19780746,4358.7,4358.6,0.9485]
[1756814032472,3.20000746,4358.7,4358.6,0.7105]
[1756814033475,3.20000746,4358.7,4358.6,0.5089]
[1756814033680,3.20000746,4358.7,4358.6,0.3001]
[1756814035577,7.20000746,4358.7,4357.3,0.3001]
[1756814035776,0.0011,4357.2,4357.1,0.7105]
[1756814035975,0.0022,4357.2,4356.8,0.3001]
[1756814036180,3.2089,4356.9,4356.8,0.7105]
[1756814036380,3.2078,4356.9,4356.8,0.7105]
[1756814036578,3.2078,4356.9,4356.1,0.3001]
[1756814036579,3.21,4356.9,4356.1,0.3001]
[1756814036777,3.449,4356.9,4356.1,0.3001]
[1756814037172,0.0022,4356.1,4356.0,1.87546667]
[1756814037377,3.2078,4356.3,4356.0,2.20276667]
[1756814037777,1.22665573,4358.2,4356.0,2.20276667]
[1756814037778,3.2078,4356.8,4356.1,0.3001]
[1756814037973,0.2411,4356.7,4356.6,0.5089]
[1756814038179,0.0011,4356.7,4356.6,0.7105]
[1756814038379,0.0022,4356.7,4356.6,0.7105]
[1756814038577,3.2078,4356.8,4356.6,0.7105]
[1756814038785,3.2078,4356.8,4356.7,0.7105]
[1756814041984,0.1147,4357.0,4356.7,0.7105]
[1756814041985,0.1147,4357.0,4356.7,4.4104]
[1756814042290,0.1147,4357.0,4356.9,0.7105]
[1756814042992,3.2078,4358.3,4357.3,0.3001]
[1756814043291,3.2078,4358.3,4357.0,0.1257]
[1756814043292,3.5776,4358.3,4358.2,0.5089]
[1756814043493,4.36772207,4358.3,4358.2,0.5089]
[1756814043694,4.36772207,4358.3,4358.2,0.7105]
[1756814044594,4.36772207,4358.3,4358.2,0.5089]
[1756814045992,4.36772207,4358.3,4358.2,0.3001]
[1756814046197,8.48332207,4358.3,4357.0,0.13]
[1756814046396,0.3143,4357.7,4357.0,0.13]
[1756814046597,0.7306,4357.7,4357.6,0.2088]
[1756814046797,1.52240048,4357.7,4357.2,0.172]
[1756814046988,0.2066,4357.3,4357.2,0.3808]
[1756814047192,1.33910767,4357.3,4357.2,0.2088]
[1756814047594,1.52281127,4357.3,4357.2,0.2088]
[1756814048197,1.52281127,4357.3,4357.2,0.5089]
[1756814048397,1.52287569,4357.3,4357.2,0.5089]
[1756814048796,4.73067443,4357.3,4357.2,0.5089]
[1756814049502,4.73067443,4357.3,4357.2,0.4982]
[1756814050506,0.99887443,4357.3,4357.2,0.694]
[1756814051503,0.99277443,4357.3,4357.2,0.694]
[1756814051901,1.20267443,4357.3,4357.2,0.694]
[1756814052196,1.20267443,4357.3,4356.7,0.3055]
[1756814052197,1.51487443,4357.3,4356.7,0.3055]
[1756814052402,0.7226,4356.8,4356.7,0.4982]
[1756814052597,4.72287619,4356.8,4356.1,0.3055]
[1756814052797,0.2005,4356.3,4356.2,0.933]
[1756814053105,0.2005,4356.3,4356.2,0.4982]
[1756814053106,0.7226,4356.3,4356.2,0.4982]
[1756814053305,0.7226,4356.1,4356.0,1.97216667]
[1756814053607,1.51582487,4356.1,4356.0,1.66666667]
[1756814054007,1.51582487,4356.1,4356.0,2.16486667]
[1756814054208,1.51582487,4356.1,4356.0,1.66666667]
[1756814055505,1.51582487,4356.1,4356.0,1.97216667]
[1756814056104,1.51544979,4356.1,4356.0,1.66666667]
[1756814056301,1.20324979,4356.1,4355.5,0.239]
[1756814056511,0.2005,4355.5,4355.4,0.694]
[1756814056711,0.2005,4355.5,4355.4,41.733]
[1756814057005,3.2078,4355.8,4355.5,0.3055]
[1756814057210,0.60876571,4355.7,4355.6,0.3885]
[1756814057405,0.60876571,4355.7,4355.6,0.694]
[1756814057913,1.01916571,4355.7,4355.6,0.694]
[1756814059403,1.33136571,4355.7,4355.6,0.694]
[1756814060211,1.01916571,4355.7,4355.6,0.694]
[1756814060513,0.3537,4356.2,4355.6,0.694]
[1756814060514,0.1147,4356.2,4356.0,0.117]
[1756814060709,0.4104,4356.2,4355.3,33.05]
[1756814060915,1.10472887,4356.1,4355.4,0.6275]
[1756814061115,0.79252887,4356.0,4355.5,0.3055]
[1756814061309,1.20292887,4355.9,4355.8,0.694]
[1756814061910,0.2005,4355.5,4355.4,41.1055]
[1756814062218,0.2005,4355.5,4355.4,0.933]
[1756814062912,0.2005,4355.1,4355.0,0.3885]
[1756814063115,0.7226,4355.1,4355.0,0.694]
[1756814063311,0.7226,4355.1,4355.0,0.934]
[1756814063513,0.4104,4355.1,4355.0,0.934]
[1756814064406,1.20353983,4355.1,4355.0,0.694]
[1756814064810,1.20353983,4355.1,4355.0,0.933]
[1756814066411,1.20353983,4355.1,4355.0,0.694]
[1756814066412,0.79313983,4355.1,4355.0,0.694]
[1756814066611,3.2078,4355.8,4355.0,1.05]
[1756814066818,1.20339727,4355.7,4355.6,0.694]
[1756814067118,1.20339727,4355.7,4354.7,3.2078]
[1756814067417,0.4104,4354.8,4354.7,0.3885]
[1756814067718,4.72314365,4354.8,4354.7,0.4327]
[1756814068018,4.72314365,4354.8,4354.7,0.934]
[1756814068219,3.6182,4354.8,4354.7,0.934]
[1756814068413,3.6182,4354.8,4354.2,41.1055]
[1756814068614,1.20247678,4354.7,4354.6,0.3885]
[1756814068913,1.20247678,4354.7,4354.6,0.4982]
[1756814069117,0.4104,4354.3,4354.2,0.1927]
[1756814069319,0.2005,4354.3,4354.2,0.694]
[1756814070620,3.2078,4354.8,4354.3,0.3055]
[1756814070920,3.2078,4354.8,4354.7,0.3055]
[1756814071120,3.4083,4354.8,4354.7,0.694]
[1756814073116,3.6182,4354.8,4354.7,0.694]
[1756814073321,3.9304,4354.8,4354.7,0.694]
[1756814073519,3.9304,4354.8,4354.3,0.3055]
[1756814073717,0.7226,4354.5,4354.4,0.7382]
[1756814073919,0.2005,4354.5,4354.4,0.934]
[1756814074122,3.2078,4354.8,4354.5,0.3055]
[1756814074419,3.2078,4354.8,4354.4,0.6285]
[1756814074420,3.6182,4354.8,4354.7,0.694]
[1756814074724,0.4104,4354.7,4354.6,0.694]
[1756814074920,3.2078,4354.8,4354.7,0.3055]
[1756814075123,3.4083,4354.8,4354.7,0.934]
[1756814075528,3.9304,4354.8,4354.7,0.694]
[1756814075824,3.9304,4354.8,4354.7,0.4982]
[1756814076015,3.9304,4354.8,4354.7,0.694]
[1756814076418,3.6182,4354.8,4354.7,0.694]
[1756814076614,3.4083,4354.8,4354.7,0.694]
[1756814076824,3.2078,4354.8,4354.7,0.694]
[1756814077025,0.1147,4355.0,4354.9,0.3885]
[1756814077225,0.3152,4355.0,4354.9,0.7382]
[1756814077426,0.7226,4355.0,4354.9,0.7382]
[1756814077726,0.4104,4355.0,4354.9,0.934]
[1756814077925,3.52,4355.4,4354.9,0.6285]
[1756814078121,3.6182,4355.4,4355.3,0.694]
[1756814078427,3.9304,4355.4,4355.3,0.934]
[1756814078620,4.11422169,4355.4,4355.3,0.934]
[1756814078821,3.9304,4355.4,4355.3,0.934]
[1756814079226,4.11428967,4355.4,4355.3,0.934]
[1756814080026,3.80208967,4355.4,4355.3,0.934]
[1756814080221,3.59218967,4355.4,4355.3,0.934]
[1756814080420,3.4083,4355.4,4355.3,0.934]
[1756814081124,3.6144,4355.4,4355.3,0.934]
[1756814081525,0.3144,4355.3,4354.9,0.24]
[1756814081728,0.7155,4355.0,4354.9,0.4992]
[1756814082027,0.7155,4355.0,4354.9,0.7392]
[1756814082223,0.89969974,4355.0,4354.9,0.24]
[1756814082823,0.89969974,4355.0,4354.9,0.5483]
[1756814083128,0.89969974,4355.0,4354.9,0.4992]
[1756814083328,0.3144,4354.9,4354.8,0.24]
[1756814083636,0.89969974,4354.9,4354.8,0.7392]
[1756814083817,0.89969974,4354.9,4354.8,0.4992]
[1756814084022,0.89969974,4354.9,4354.8,0.7392]
[1756814084220,0.89969974,4354.9,4354.8,0.4992]
[1756814084429,0.7155,4354.8,4354.7,0.5483]
[1756814084728,0.89969974,4354.8,4354.7,0.5483]
[1756814085530,0.89969974,4354.8,4354.7,0.7392]
[1756814085924,0.3144,4354.7,4354.2,0.3083]
[1756814086135,0.7155,4354.3,4354.1,0.10564634]
[1756814086328,0.7155,4354.2,4354.1,0.60484634]
[1756814087029,0.7155,4354.2,4354.1,0.80544634]
[1756814087936,3.2078,4354.9,4354.1,0.80544634]
[1756814087937,0.3144,4354.6,4354.1,0.80544634]
[1756814088138,0.37927254,4354.5,4354.4,0.3915]
[1756814088333,0.89977254,4354.5,4354.4,0.6998]
[1756814088531,0.89977254,4354.5,4354.2,0.3083]
[1756814088833,3.2078,4354.9,4354.1,0.10564634]
[1756814088834,0.89977254,4354.4,4354.3,0.7392]
[1756814089041,0.7155,4354.3,4354.2,0.3083]
[1756814089229,0.89977254,4354.3,4354.2,0.6998]
[1756814089638,0.58537254,4354.3,4354.2,0.6998]
[1756814089826,0.18427254,4354.3,4354.2,0.6998]
[1756814090033,0.37927254,4354.3,4354.2,0.6998]
[1756814090232,0.89977254,4354.3,4354.2,0.7392]
[1756814090533,0.4011,4354.2,4354.1,0.73714634]
[1756814090741,0.18429877,4354.2,4354.1,0.73714634]
[1756814090934,0.3144,4354.8,4354.1,0.73714634]
[1756814091239,0.7155,4354.3,4354.2,0.7392]
[1756814091538,0.7155,4354.3,4354.2,0.3083]
[1756814091938,0.7155,4354.2,4354.1,0.60484634]
[1756814092131,0.7155,4354.2,4354.1,0.84484634]
[1756814092331,3.2078,4354.4,4354.2,0.3083]
[1756814092537,0.58548699,4354.3,4354.2,0.6998]
[1756814092735,0.58548659,4354.3,4354.2,0.6998]
[1756814093036,3.4028,4354.4,4354.3,0.3083]
[1756814093240,3.58719902,4354.4,4354.3,0.6998]
[1756814094638,0.3144,4354.3,4354.1,0.10564634]
[1756814094844,0.5094,4354.1,4354.0,2.02646667]
[1756814095037,0.37940594,4354.1,4354.0,2.02646667]
[1756814096135,0.89990594,4354.1,4354.0,2.26646667]
[1756814096742,0.58550594,4354.1,4354.0,2.26646667]
[1756814096934,0.37940594,4354.1,4354.0,2.26646667]
[1756814097136,0.18440594,4354.1,4354.0,2.26646667]
[1756814097445,0.89990594,4354.1,4354.0,2.26646667]
[1756814097838,0.89990594,4354.1,4354.0,1.75756667]
[1756814098144,0.89990594,4354.1,4354.0,2.06586667]
[1756814098343,0.58550594,4354.1,4354.0,2.26646667]
[1756814098545,0.37940594,4354.1,4354.0,2.26646667]
[1756814098745,0.89990594,4354.1,4354.0,2.02646667]
[1756814098938,0.89990594,4354.1,4354.0,2.26646667]
[1756814099339,0.18440594,4354.1,4354.0,2.26646667]
[1756814099645,0.1147,4354.3,4354.2,0.6998]
[1756814100239,0.1147,4354.3,4354.2,0.9398]
[1756814102144,0.1147,4354.3,4354.2,0.6998]
[1756814102350,0.1147,4354.3,4354.2,0.9388]
[1756814102549,0.5158,4354.3,4354.2,0.9388]
[1756814102849,0.1147,4354.3,4354.2,0.9388]
[1756814103945,0.1147,4354.3,4354.2,4.9388]
[1756814104139,3.4028,4355.6,4355.5,0.3915]
[1756814104342,4.10789091,4355.6,4355.5,0.9388]
[1756814105141,3.79349091,4355.6,4355.5,0.9388]
[1756814105346,3.39239091,4355.6,4355.5,0.9388]
[1756814105751,3.2078,4355.6,4355.5,0.9388]
[1756814106750,3.2078,4355.6,4355.5,1.0533]
[1756814107153,0.3144,4356.2,4355.5,0.745]
[1756814107347,0.58557095,4356.1,4356.0,0.6998]
[1756814107546,0.89997095,4356.1,4356.0,0.9388]
[1756814109343,0.7155,4356.1,4356.0,0.9388]
[1756814109745,3.2078,4356.3,4356.0,1.16356]
[1756814109952,3.2078,4356.3,4356.2,0.6954]
[1756814110550,3.2078,4356.8,4356.2,0.6954]
[1756814110754,3.2078,4356.8,4356.7,0.4002]
[1756814111050,3.2078,4356.8,4356.7,0.6954]
[1756814111051,0.6812,4356.8,4356.7,0.6954]
[1756814111446,0.1927,4356.8,4356.7,0.9344]
[1756814111843,3.2078,4357.8,4356.7,0.6392]
[1756814112045,0.47751007,4357.7,4356.8,0.2952]
[1756814112241,0.6812,4357.5,4357.4,0.2071]
[1756814112449,0.6812,4357.5,4357.4,0.239]
[1756814113553,0.6812,4357.4,4357.3,0.2071]
[1756814113756,0.6812,4357.4,4357.3,0.7413]
[1756814114661,0.6812,4357.4,4357.3,0.4461]
[1756814115764,0.6812,4357.4,4357.3,0.9344]
[1756814117160,0.3878,4357.4,4357.3,0.9344]
[1756814117458,0.1927,4357.4,4357.3,0.9344]
[1756814117852,3.2078,4357.8,4357.3,0.6392]
[1756814118048,0.4861,4357.7,4357.6,0.4002]
[1756814118255,0.6812,4357.7,4357.6,0.6954]
[1756814118465,0.6812,4357.7,4357.6,0.9334]
[1756814118656,0.1927,4357.7,4357.6,0.9334]
[1756814120069,0.1927,4357.7,4357.6,0.6954]
[1756814120266,0.4861,4357.7,4357.6,0.9334]
[1756814121170,0.6812,4357.7,4357.6,0.9334]
[1756814122567,0.3878,4357.7,4357.6,0.9334]
[1756814122774,0.1927,4357.7,4357.6,0.9334]
[1756814123669,3.2078,4357.8,4357.7,0.2952]
[1756814123964,3.2078,4357.8,4357.7,0.6954]
[1756814125170,3.4005,4357.8,4357.7,0.6954]
[1756814125369,3.6939,4357.8,4357.7,0.6954]
[1756814125570,3.4005,4357.8,4357.7,0.6954]
[1756814126566,3.889,4357.8,4357.7,0.6954]
[1756814126870,3.889,4357.8,4357.7,0.9334]
[1756814127568,0.2934,4357.7,4357.1,0.2952]
[1756814127770,0.6812,4356.9,4356.8,33.3]
[1756814128966,0.6812,4356.9,4356.8,33.062]
[1756814129167,0.6812,4356.8,4356.7,0.238]
[1756814129367,3.889,4356.8,4356.7,0.238]
[1756814130775,3.2078,4356.8,4356.7,0.9334]
[1756814130977,0.2934,4357.2,4356.8,0.5023]
[1756814131174,0.2934,4356.8,4356.2,0.2952]
[1756814131477,0.2934,4356.2,4356.1,40.8]
[1756814131676,0.2934,4356.2,4356.1,41.038]
[1756814131978,0.2934,4356.2,4356.1,41.3332]
[1756814132873,0.6812,4356.8,4356.7,0.6954]
[1756814133074,0.6812,4356.8,4356.7,0.9334]
[1756814133473,0.86543388,4356.8,4356.7,0.238]
[1756814133676,0.2934,4355.3,4355.0,0.2952]
[1756814133976,0.2934,4355.3,4354.6,3.2078]
[1756814133977,0.6812,4355.2,4355.1,0.9334]
[1756814134177,0.6812,4355.2,4355.1,41.7334]
[1756814134376,0.6812,4355.2,4355.1,41.4954]
[1756814134574,0.6812,4355.2,4355.1,0.9334]
[1756814135284,0.6812,4355.2,4355.1,0.6954]
[1756814135482,0.6812,4355.2,4355.1,0.9334]
[1756814135684,0.6812,4355.2,4355.1,0.6382]
[1756814136580,0.6812,4355.2,4355.1,0.4002]
[1756814136778,0.6812,4355.2,4355.1,0.6382]
[1756814137586,0.6812,4355.2,4355.1,0.4002]
[1756814137785,0.6812,4355.2,4355.1,0.6382]
[1756814137972,0.1927,4355.3,4355.2,0.2952]
[1756814138177,0.1927,4355.3,4355.2,0.6954]
[1756814138681,0.6812,4355.3,4355.2,0.6954]
[1756814139682,0.1927,4355.3,4355.2,0.6954]
[1756814139878,3.2078,4355.6,4355.3,0.3097]
[1756814140075,3.2078,4355.6,4355.2,0.4002]
[1756814140076,3.9181,4355.6,4355.5,0.7098]
[1756814140679,3.6152,4355.6,4355.5,0.7098]
[1756814140882,0.3029,4356.0,4355.5,0.7098]
[1756814141086,0.7103,4356.8,4356.7,0.4001]
[1756814141284,0.7103,4356.8,4356.7,0.9478]